fUSD/lending_fUSD_20260121
["ID","MTS","AMOUNT","RATE_DAILY","PERIOD"]
[402908587,1768978251653,-794.119,0.0003937,2]
[402908588,1768978251663,-150.0,0.00039404,7]
[402908589,1768978251673,-150.0,0.00039404,7]
[402908590,1768978251683,-150.0,0.00039404,7]
[402908591,1768978251693,-151.09863411,0.00039422,87]
[402908592,1768978251703,-150.0,0.00039435,7]
[402908593,1768978251713,-150.0,0.00039507,7]
[402908594,1768978251723,-150.0,0.00039507,7]
[402908595,1768978251733,-824.33,0.000396,2]
[402908596,1768978251743,-150.0,0.00039609,7]
[402908597,1768978251753,-150.0,0.0003965,7]
[402908598,1768978251763,-150.0,0.0003965,7]
[402908599,1768978251773,-152.0,0.00039698,4]
[402908600,1768978251783,-150.0,0.00039746,7]
[402908601,1768978251795,-688.01140589,0.0003978,2]
[402908602,1768978251806,-832.99271072,0.0003978,2]
[402908603,1768978251815,-150.0,0.00039814,7]
[402908604,1768978251829,-150.0,0.00039866,7]
[402908605,1768978251841,-300.0,0.00039879,10]
[402908606,1768978251851,-648.46559056,0.0003988,31]
[402908607,1768978251861,-2861749.70663363,0.0003988,30]
[402908608,1768978253265,-166.665888,0.00036986,31]
[402908609,1768978253274,-166.665888,0.00036986,31]
[402908610,1768978253283,-166.665888,0.00036986,31]
[402908611,1768978253293,-166.665888,0.00036986,31]
[402908612,1768978253302,-166.665888,0.00036986,31]
[402908613,1768978253312,-1140423.3849348,0.0003988,30]
[402908614,1768978253322,-819.74957882,0.0003988,70]
[402908615,1768978253331,-20689.66319969,0.0003988,4]
[402908616,1768978253340,-63598.64404918,0.0003988,2]
[402908617,1768978253349,-222.796324,0.0003988,120]
[402908618,1768978253359,-222.796324,0.0003988,120]
[402908619,1768978253368,-222.796324,0.0003988,120]
[402908620,1768978253377,-87.13209715,0.0003988,120]
[402908621,1768978253398,-135.66422685,0.0003988,120]
[402908622,1768978253407,-151.0,0.0003988,120]
[402908623,1768978253417,-113.33577315,0.0003988,120]
[402908624,1768978253428,-72.98870185,0.0003988,120]
[402908625,1768978253437,-186.324475,0.0003988,120]
[402908626,1768978253446,-186.324475,0.0003988,120]
[402908627,1768978253455,-186.324475,0.0003988,120]
[402908628,1768978253464,-151.0,0.0003988,120]
[402908629,1768978253473,-184.296655,0.0003988,120]
[402908630,1768978253483,-184.296655,0.0003988,120]
[402908631,1768978253493,-184.296655,0.0003988,120]
[402908632,1768978253502,-184.296655,0.0003988,120]
[402908633,1768978253511,-151.0,0.0003988,120]
[402908634,1768978253520,-272.695808,0.0003988,120]
[402908635,1768978253529,-269.837171,0.0003988,120]
[402908636,1768978253538,-272.695808,0.0003988,120]
[402908637,1768978253547,-272.695808,0.0003988,120]
[402908638,1768978253557,-272.695808,0.0003988,120]
[402908639,1768978253650,-151.0,0.0003988,120]
[402908640,1768978253660,-151.0,0.0003988,120]
[402908641,1768978253670,-166.665888,0.0003988,120]
[402908642,1768978253679,-166.665888,0.0003988,120]
[402908643,1768978253689,-166.665888,0.0003988,120]
[402908644,1768978253698,-396.63383466,0.00039899,10]
[402908645,1768978253707,-393.09935149,0.000399,60]
[402908646,1768978254603,-151.0,0.00018274,2]
[402908647,1768978254614,-158.48747468,0.00018931,2]
[402908648,1768978254625,-60.54452532,0.00036986,31]
[402908649,1768978254651,-1177.81320539,0.0002737,2]
[402908654,1768978892207,1370.991,0.00016263,2]
[402908655,1768978892372,167.942,0.00016263,2]
[402908689,1768979432433,-361.46786234,0.00016497,2]
[402908690,1768979432551,-18.41818059,0.00016497,2]
[402908691,1768979432561,-288.05517986,0.00016594,2]
[402908692,1768979432571,-500.0,0.00016594,2]
[402908693,1768979432581,-628.13982937,0.00016594,2]
[402908694,1768979432591,-500.0,0.00016594,2]
[402908695,1768979432600,-500.0,0.00016594,2]
[402908696,1768979432609,-635.06765406,0.00016594,2]
[402908697,1768979432619,-500.0,0.00016594,2]
[402908698,1768979432628,-500.0,0.00016594,2]
[402908699,1768979432639,-500.0,0.00016594,2]
[402908700,1768979432648,-500.0,0.00016594,2]
[402908701,1768979432658,-500.0,0.00016594,2]
[402908702,1768979432667,-500.0,0.00016594,2]
[402908704,1768979432676,-500.0,0.00016594,2]
[402908706,1768979432685,-500.0,0.00016594,2]
[402908708,1768979432694,-500.0,0.00016594,2]
[402908710,1768979432703,-500.0,0.00016594,2]
[402908711,1768979432712,-500.0,0.00016594,2]
[402908712,1768979432721,-500.0,0.00016594,2]
[402908713,1768979432731,-500.0,0.00016594,2]
[402908714,1768979432740,-500.0,0.00016594,2]
[402908715,1768979432750,-258.69403669,0.00016597,2]
[402908716,1768979432760,-1000.0,0.00016697,2]
[402908717,1768979432769,-500.0,0.00016797,2]
[402908718,1768979432779,-150.00651706,0.00016825,2]
[402908719,1768979432789,-907.3297079,0.00016934,2]
[402908720,1768979432798,-25952.27,0.00017073,2]
[402908721,1768979432807,-500.0,0.00017073,2]
[402908722,1768979432817,-500.0,0.00017073,2]
[402908723,1768979432826,-500.79549494,0.00017373,2]
[402908724,1768979432836,-500.12560695,0.00017373,2]
[402908725,1768979432846,-550.70733566,0.00017373,2]
[402908726,1768979432855,-500.73381826,0.00017373,2]
[402908727,1768979432864,-500.0,0.00017373,2]
[402908728,1768979432873,-502.57286198,0.00017373,2]
[402908729,1768979432883,-159.96427776,0.00017373,2]
[402908730,1768979432892,-586.66357325,0.00017373,2]
[402908731,1768979432902,-500.0,0.00017373,2]
[402908732,1768979432911,-322.92976016,0.00017373,2]
[402908733,1768979432922,-500.0,0.00017373,2]
[402908734,1768979432932,-500.0,0.00017621,2]
[402908735,1768979432942,-500.0,0.00017921,2]
[402908736,1768979432952,-500.0,0.00017921,2]
[402908737,1768979432962,-150.00651706,0.00018,2]
[402908738,1768979432971,-250.0,0.00018147,2]
[402908739,1768979432981,-250.0,0.00018147,2]
[402908740,1768979432991,-151.0,0.00018163,2]
[402908741,1768979433000,-151.0,0.0001817,2]
[402908742,1768979433009,-760.8,0.00018222,2]
[402908743,1768979433018,-27733.45,0.00018533,2]
[402908744,1768979433028,-7007.81,0.00018533,2]
[402908745,1768979433037,-286.08855336,0.00018656,2]
[402908746,1768979433047,-1744.92671785,0.00019174,5]
[402908747,1768979433056,-258.69403669,0.00019186,2]
[402908748,1768979433066,-512.0,0.000196,2]
[402908749,1768979433075,-150.00651706,0.00020348,12]
[402908750,1768979433084,-150.0,0.00020365,2]
[402908751,1768979433094,-150.0,0.00020365,2]
[402908752,1768979433103,-150.0,0.00020365,2]
[402908753,1768979433113,-150.0,0.00020365,2]
[402908754,1768979433122,-150.0,0.0002042,2]
[402908755,1768979433132,-150.0,0.0002042,2]
[402908756,1768979433142,-150.0,0.0002042,2]
[402908757,1768979433152,-760.8,0.00020472,2]
[402908758,1768979433161,-150.0,0.00020475,2]
[402908759,1768979433171,-150.0,0.00020475,2]
[402908760,1768979433181,-150.0,0.00020475,2]
[402908761,1768979433191,-150.0,0.00020529,2]
[402908762,1768979433200,-150.0,0.00020529,2]
[402908763,1768979433209,-150.0,0.00020529,2]
[402908764,1768979433219,-500.0,0.00020584,2]
[402908765,1768979433228,-150.0,0.00020584,2]
[402908766,1768979433238,-150.0,0.00020584,2]
[402908767,1768979433249,-200.0,0.00020584,2]
[402908768,1768979433262,-150.0,0.00020584,2]
[402908769,1768979433272,-150.0,0.00020584,2]
[402908770,1768979433282,-258.32254134,0.00020584,2]
[402908771,1768979433291,-247.22335931,0.00020584,2]
[402908772,1768979433301,-150.0,0.00020584,2]
[402908773,1768979433311,-150.0,0.00020584,2]
[402908774,1768979433320,-150.0,0.00020584,2]
[402908775,1768979433331,-103.92228193,0.00020584,2]
[402908776,1768979433343,-46.07771807,0.00020584,2]
[402908777,1768979433352,-150.0,0.00020584,2]
[402908778,1768979433362,-362.19766965,0.00020639,2]
[402908779,1768979438380,-137.80233035,0.00020639,2]
[402908780,1768979438390,-150.0,0.00020639,2]
[402908781,1768979438400,-150.0,0.00020639,2]
[402908782,1768979438410,-150.0,0.00020639,2]
[402908783,1768979438419,-150.0,0.00020639,2]
[402908784,1768979438428,-150.0,0.00020639,2]
[402908785,1768979438438,-250.0,0.00020639,2]
[402908786,1768979438447,-250.0,0.00020639,2]
[402908787,1768979438457,-250.0,0.00020639,2]
[402908788,1768979438466,-255.67766965,0.00020694,2]
[402908789,1768979438503,-98.32233035,0.00020694,2]
[402908790,1768979438513,-150.0,0.00020694,2]
[402908791,1768979438523,-200.0,0.00020694,2]
[402908792,1768979438532,-150.0,0.00020694,2]
[402908793,1768979438542,-200.0,0.00020694,2]
[402908794,1768979438552,-200.0,0.00020694,2]
[402908795,1768979438562,-150.0,0.00020748,2]
[402908796,1768979438571,-200.0,0.00020748,2]
[402908797,1768979438580,-150.0,0.00020803,2]
[402908798,1768979438590,-250.0,0.00020858,2]
[402908799,1768979438599,-260.62776019,0.00020858,2]
[402908800,1768979438611,-119.25828274,0.00020858,2]
[402908801,1768979438620,-258.69403669,0.00021775,2]
[402908802,1768979438630,-150.00651706,0.00022697,21]
[402908803,1768979438640,-61.00195931,0.00022723,2]
[402908804,1768979438660,-699.79804069,0.00022723,2]
[402908806,1768979438670,-211.73,0.000228,7]
[402908807,1768979438679,-150.00651706,0.00023871,26]
[402908808,1768979438688,-258.69403669,0.00024365,2]
[402908809,1768979438698,-5068.0,0.00024614,2]
[402908811,1768979438707,-760.8,0.00024973,2]
[402908813,1768979438716,-150.00651706,0.00025045,30]
[402908815,1768979438725,-379.88604293,0.0002522,2]
[402908817,1768979438734,-512.0,0.0002564,7]
[402908819,1768979438743,-150.00651706,0.0002622,35]
[402908821,1768979438753,-258.69403669,0.00026954,2]
[402908823,1768979438762,-760.8,0.00027223,2]
[402908825,1768979438772,-151.0,0.0002737,2]
[402908827,1768979438781,-289.5121204,0.0002737,2]
[402908833,1768979439025,-150.00651706,0.00027394,39]
[402908836,1768979439052,-500.0,0.00027397,120]
[402908838,1768979439063,-500.0,0.00027397,120]
[402908840,1768979439072,-500.0,0.00027397,120]
[402908842,1768979439082,-500.0,0.00027397,120]
[402908844,1768979439092,-500.0,0.00027397,120]
[402908846,1768979439101,-500.0,0.00027397,120]
[402908848,1768979439111,-500.0,0.00027397,120]
[402908850,1768979439120,-500.0,0.00027397,120]
[402908852,1768979439129,-500.0,0.00027397,120]
[402908854,1768979439139,-500.0,0.00027397,120]
[402908856,1768979439149,-500.0,0.00027397,120]
[402908858,1768979439159,-505.9497694,0.00027397,120]
[402908860,1768979439169,-200.0,0.0002777,5]
[402908862,1768979439179,-823.84,0.00028217,2]
[402908864,1768979439188,-166.66,0.00028461,30]
[402908866,1768979439197,-150.00651706,0.00028568,43]
[402908868,1768979439207,-166.66,0.00029061,30]
[402908870,1768979439217,-760.8,0.00029474,2]
[402908872,1768979439227,-258.69403669,0.00029543,2]
[402908874,1768979439236,-379.88604293,0.00029581,2]
[402908876,1768979439245,-166.66,0.0002966,30]
[402908878,1768979439257,-150.00651706,0.00029743,47]
[402908880,1768979439268,-180.0,0.00030137,10]
[402908882,1768979439277,-166.66,0.00030259,30]
[402908884,1768979439286,-523.8223338,0.0003041,120]
[402908886,1768979439298,-3609.8581307,0.0003041,120]
[402908888,1768979439307,-166.66,0.00030858,30]
[402908890,1768979439317,-150.00651706,0.00030917,51]
[402908892,1768979439326,-166.66,0.00031457,30]
[402908894,1768979439337,-512.0,0.0003168,13]
[402908896,1768979439346,-760.8,0.00031724,2]
[402908898,1768979439355,-150.00651706,0.00032091,55]
[402908900,1768979439365,-258.69403669,0.00032132,2]
[402908902,1768979439374,-593.0,0.00032877,2]
[402908904,1768979439383,-596.0,0.00032877,2]
[402908906,1768979439393,-559.0,0.00032877,2]
[402908908,1768979439403,-552.0,0.00032877,2]
[402908910,1768979439412,-303.0,0.00032877,2]
[402908911,1768979439421,-491.0,0.00032877,2]
[402908913,1768979439430,-500.0,0.00032986,2]
[402908915,1768979439440,-150.00651713,0.00033265,60]
[402908917,1768979439449,-1000.0,0.0003384,2]
[402908919,1768979439459,-379.88604293,0.00033942,2]
[402908921,1768979439468,-760.8,0.00033975,5]
[402908923,1768979439478,-429.16,0.00034246,120]
[402908925,1768979439488,-429.16,0.000343,120]
[402908927,1768979439497,-201.02583547,0.0003444,64]
[402908929,1768979439507,-258.69403669,0.00034722,2]
[402908931,1768979439516,-306.0,0.00035569,10]
[402908933,1768979439526,-201.02583547,0.00035614,68]
[402908935,1768979439535,-429.16,0.00035958,120]
[402908937,1768979439544,-760.8,0.00036225,7]
[402908939,1768979439554,-201.02583547,0.00036788,72]
[402908941,1768979439563,-180.0,0.00036986,30]
[402908943,1768979439572,-166.005588,0.00037307,120]
[402908945,1768979439582,-258.69403669,0.00037311,2]
[402908947,1768979439591,-300.0,0.0003748,10]
[402908949,1768979439601,-512.0,0.0003772,19]
[402908951,1768979439610,-200.0,0.00037872,2]
[402908953,1768979439620,-201.02583547,0.00037963,77]
[402908955,1768979439630,-517.38,0.00038,30]
[402908957,1768979439639,-379.88604293,0.00038304,2]
[402908958,1768979439649,-760.8,0.00038475,30]
[402908960,1768979439658,-150.0,0.0003861,30]
[402908962,1768979439667,-406.06542177,0.00038684,2]
[402908965,1768979439679,-687.9973991,0.00038684,2]
[402908967,1768979439690,-448.30419999,0.00038684,2]
[402908969,1768979439699,-2185.56150212,0.00038769,15]
[402908971,1768979439710,-403.80396756,0.00038769,15]
[402908973,1768979439721,-405.47324227,0.00038769,15]
[402908975,1768979439731,-6835.14403401,0.00038769,15]
[402908978,1768979439746,-1089.81245063,0.00038769,15]
[402908987,1768979440628,-165.97494936,0.00038684,2]
[402908988,1768979440638,-1170.93180341,0.00038769,15]
[402908989,1768979440842,-377.598,0.00038769,15]
[402908990,1768979440853,-1621.65531275,0.00038769,15]
[402908991,1768979440876,-442.2986497,0.00038769,15]
[402908992,1768979440912,-7996.74586111,0.00038769,15]
[402908993,1768979440923,-5800.0,0.00038769,14]
[402908994,1768979440933,-201.02583547,0.00039137,85]
[402908995,1768979440943,-150.0,0.00039164,2]
[402908996,1768979440952,-399.79515,0.0003948,114]
[402908997,1768979440962,-399.79514,0.0003948,114]
[402908998,1768979440971,-399.79515,0.0003948,114]
[402908999,1768979440980,-399.79514,0.0003948,114]
[402909000,1768979440989,-249.07730051,0.00039484,28]
[402909001,1768979440998,-439.40188217,0.00039484,28]
[402909002,1768979441008,-657.31893683,0.00039484,28]
[402909003,1768979441018,-889.3665,0.00039484,28]
[402909004,1768979441027,-23400.41653983,0.000396,120]
[402909005,1768979441036,-1370.992,0.00039697,55]
[402909007,1768979441048,-167.943,0.00039697,55]
[402909008,1768979441058,-52099.5010385,0.000398,7]
[402909014,1768979555044,500.0,0.00016594,2]
[402909015,1768979555081,500.0,0.00016594,2]
[402909016,1768979555118,500.0,0.00016594,2]
[402909017,1768979555152,250.0,0.00016594,2]
[402909018,1768979555187,500.0,0.00016594,2]
[402909019,1768979555217,500.0,0.00016594,2]
[402909020,1768979555256,500.0,0.00016594,2]
[402909021,1768979555292,500.0,0.00016594,2]
[402909022,1768979555324,500.0,0.00016594,2]
[402909023,1768979555364,500.0,0.00016594,2]
[402909024,1768979555394,500.0,0.00016594,2]
[402909025,1768979555428,500.0,0.00016594,2]
[402909026,1768979555457,500.0,0.00016594,2]
[402909027,1768979555494,500.0,0.00016594,2]
[402909028,1768979562837,500.0,0.00017372,2]
[402909029,1768979563182,459.45196156,0.00017372,2]
[402909030,1768979565041,500.0,0.00017372,2]
[402909031,1768979565166,500.0,0.00017372,2]
[402909032,1768979565200,500.0,0.00017372,2]
[402909033,1768979565260,500.0,0.00017372,2]
[402909034,1768979565375,500.0,0.00017372,2]
[402909035,1768979565408,500.0,0.00017372,2]
[402909036,1768979565442,90.54803844,0.00017372,2]
[402909037,1768979763203,276.87,0.000226,120]
[402909038,1768980135655,377.40151085,0.000176,30]
[402909039,1768980135718,500.0,0.000176,30]
[402909044,1768980495735,1333.31708973,0.00015,2]
[402909047,1768980513165,8175.48539167,0.00015,2]
[402909050,1768980547477,10000.0,0.00016415,2]
[402909055,1768980557012,10000.0,0.00016415,2]
[402909057,1768980563475,10000.0,0.00016415,2]
[402909058,1768980572197,5399.0,0.00016415,2]
[402909068,1768980631544,-1200.0,0.00017499,2]
[402909069,1768980631554,-23266.27927483,0.000175,2]
[402909070,1768980631564,-173.99051683,0.000175,2]
[402909071,1768980631574,-1491.55536058,0.000179,2]
[402909072,1768980631583,-3841.36534858,0.000179,2]
[402909073,1768980631593,-164.05151986,0.000179,2]
[402909074,1768980631603,-343.01283079,0.000179,2]
[402909075,1768980631613,-300.0,0.00017999,2]
[402909076,1768980631623,-150.00701414,0.00017999,2]
[402909077,1768980631633,-159.07586308,0.00017999,2]
[402909078,1768980631643,-454.99928511,0.00017999,2]
[402909079,1768980631654,-201.63862591,0.00017999,2]
[402909080,1768980631664,-500.0,0.00017999,2]
[402909081,1768980631675,-377.7620899,0.00017999,2]
[402909082,1768980631685,-250.61422688,0.00017999,2]
[402909083,1768980631696,-500.0,0.00017999,2]
[402909084,1768980631707,-500.0,0.00017999,2]
[402909085,1768980631717,-500.0,0.00017999,2]
[402909086,1768980631727,-500.0,0.00017999,2]
[402909087,1768980631736,-500.0,0.00017999,2]
[402909088,1768980631746,-500.0,0.00017999,2]
[402909089,1768980631756,-500.0,0.00017999,2]
[402909090,1768980631766,-500.0,0.00017999,2]
[402909091,1768980631776,-500.0,0.00017999,2]
[402909092,1768980631786,-500.0,0.00017999,2]
[402909093,1768980631795,-500.0,0.00017999,2]
[402909094,1768980631804,-500.0,0.00017999,2]
[402909095,1768980631814,-332.28300482,0.00017999,2]
[402909096,1768980631823,-500.0,0.00017999,2]
[402909097,1768980631833,-500.0,0.00017999,2]
[402909098,1768980631843,-500.0,0.00017999,2]
[402909100,1768980631853,-500.0,0.00017999,2]
[402909102,1768980631863,-98379.81482981,0.00018,2]
[402909104,1768980631875,-30560.99544539,0.00018,2]
[402909106,1768980631887,-29993.92345812,0.00018,2]
[402909107,1768980631898,-1254.41808677,0.00018,2]
[402909108,1768980631983,-600.0,0.00018,2]
[402909109,1768980632002,-1936.75062507,0.00018,2]
[402909115,1768980637617,-44634.68417674,0.00018,2]
[402909116,1768980637629,-1972.78274802,0.00018,2]
[402909117,1768980637641,-1501.19660196,0.00018,2]
[402909118,1768980637654,-477.48138016,0.00018,2]
[402909119,1768980637666,-1138676.65536052,0.00018,2]
[402909120,1768980637678,-322.7392854,0.00018,2]
[402909121,1768980637691,-426.4607146,0.00018,2]
[402909169,1768980639568,-470.48799948,0.00018,2]
[402909170,1768980639822,-445.40166449,0.00018,2]
[402909171,1768980639833,-679.77855441,0.00018,2]
[402909172,1768980640108,-653.7286811,0.00018,2]
[402909173,1768980640121,-926.039998,0.00018,2]
[402909174,1768980640173,-406.95691,0.00018,2]
[402909189,1768980642608,-13131.07939292,0.00018,2]
[402909190,1768980642673,-1361987.38663628,0.00018,2]
[402909191,1768980645468,-1089.88117537,0.00018,2]
[402909192,1768980645566,-266.80887864,0.00018,2]
[402909193,1768980645578,-14236.24934546,0.00018,2]
[402909194,1768980645605,-668.70886312,0.00018,2]
[402909195,1768980645620,-557.56766416,0.00018,2]
[402909196,1768980645775,-5210.14308199,0.00018,2]
[402909199,1768980646053,-593.82396974,0.00018,2]
[402909200,1768980646065,-547.44,0.00018,2]
[402909201,1768980646076,-553.92,0.00018,2]
[402909202,1768980646087,-3960.10433464,0.00018,2]
[402909203,1768980646097,-4022.57045668,0.00018,2]
[402909205,1768981695680,166.66,0.00015922,2]
[402909206,1768981696072,166.66,0.00016257,2]
[402909207,1768981714480,-166.66,0.00016593,2]
[402909208,1768981714505,-167.0,0.00016672,2]
[402909209,1768981714528,-800.0,0.000167,2]
[402909210,1768981714552,-250.0,0.0001679,2]
[402909211,1768981714577,-150.00035689,0.00016856,2]
[402909212,1768981714601,-301.55092353,0.00016864,2]
[402909213,1768981714625,-675.44,0.00016879,2]
[402909214,1768981714648,-500.0,0.00016885,2]
[402909215,1768981714674,-166.66,0.00016928,2]
[402909216,1768981714709,-1200.0,0.00016974,2]
[402909217,1768981714736,-300.0,0.00016974,2]
[402909218,1768981714772,-12205.42,0.00016975,2]
[402909219,1768981714797,-451.30102214,0.00017053,2]
[402909220,1768981714823,-300.0,0.00017072,2]
[402909221,1768981714847,-543.26843644,0.00017073,2]
[402909222,1768981714871,-500.0,0.00017073,2]
[402909223,1768981714916,-500.0,0.00017073,2]
[402909224,1768981714945,-500.0,0.00017073,2]
[402909225,1768981714969,-541.31841079,0.00017073,2]
[402909226,1768981714993,-500.0,0.00017073,2]
[402909227,1768981715018,-500.0,0.00017073,2]
[402909228,1768981715041,-500.0,0.00017073,2]
[402909229,1768981715066,-502.83012904,0.00017073,2]
[402909230,1768981715089,-500.0,0.00017073,2]
[402909231,1768981715112,-500.0,0.00017073,2]
[402909232,1768981715138,-500.0,0.00017073,2]
[402909233,1768981715165,-500.0,0.00017073,2]
[402909234,1768981715189,-500.0,0.00017073,2]
[402909235,1768981715212,-500.63296553,0.00017073,2]
[402909236,1768981715237,-500.37191233,0.00017073,2]
[402909237,1768981715260,-238.3469004,0.00017073,2]
[402909238,1768981715284,-500.0,0.00017073,2]
[402909239,1768981715307,-500.0,0.00017073,2]
[402909240,1768981715331,-457.782643,0.00017073,2]
[402909241,1768981715353,-488.97132533,0.00017073,2]
[402909242,1768981715376,-500.53012831,0.00017073,2]
[402909243,1768981715399,-500.0,0.00017073,2]
[402909244,1768981715426,-500.0,0.00017073,2]
[402909245,1768981715450,-500.0,0.00017073,2]
[402909246,1768981715476,-500.0,0.00017073,2]
[402909247,1768981715499,-601.53993249,0.00017073,2]
[402909248,1768981715521,-500.0,0.00017073,2]
[402909249,1768981715545,-367.0,0.00017073,2]
[402909250,1768981715569,-166.66,0.00017263,2]
[402909251,1768981715594,-367.0,0.00017347,2]
[402909252,1768981715616,-250.0,0.00017373,2]
[402909253,1768981715639,-500.99033758,0.00017373,2]
[402909254,1768981715663,-500.0,0.00017373,2]
[402909255,1768981715686,-167.0,0.00017505,2]
[402909256,1768981715709,-1648.0,0.0001751,2]
[402909257,1768981715732,-1655.0,0.00017545,2]
[402909258,1768981715755,-259.0,0.0001758,2]
[402909259,1768981715779,-166.66,0.00017598,2]
[402909260,1768981715802,-1516.0,0.00017615,2]
[402909261,1768981715825,-209.98696259,0.00017621,2]
[402909262,1768981715848,-503.17577378,0.00017621,2]
[402909263,1768981715871,-500.71245302,0.00017621,2]
[402909264,1768981715894,-504.13204303,0.00017621,2]
[402909265,1768981715917,-1000.0,0.00017621,2]
[402909266,1768981715940,-500.76797646,0.00017621,2]
[402909267,1768981715963,-503.90375797,0.00017621,2]
[402909268,1768981715986,-324.68792933,0.00017621,2]
[402909269,1768981716009,-501.61885564,0.00017621,2]
[402909270,1768981716034,-367.0,0.00017621,2]
[402909271,1768981716063,-500.0,0.00017699,2]
[402909272,1768981716092,-425.80922276,0.00017699,2]
[402909273,1768981716116,-2378.6199,0.000177,2]
[402909274,1768981716144,-10206.64970162,0.000177,2]
[402909285,1768981831651,-800.0,0.000167,2]
[402909286,1768981831660,-83.1256008,0.00017073,2]
[402909287,1768981831672,-420.33930109,0.00017073,2]
[402909288,1768981831681,-505.06588548,0.00017073,2]
[402909289,1768981831690,-500.0,0.00017073,2]
[402909290,1768981831700,-500.0,0.00017073,2]
[402909291,1768981831710,-500.50184969,0.00017073,2]
[402909292,1768981831719,-501.38611894,0.00017373,2]
[402909293,1768981831729,-500.0,0.00017373,2]
[402909294,1768981831738,-500.36416289,0.00017373,2]
[402909295,1768981831748,-501.89517318,0.00017373,2]
[402909296,1768981831757,-500.17425444,0.00017373,2]
[402909297,1768981831771,-500.0,0.00017373,2]
[402909298,1768981831781,-1004.61384517,0.00017621,2]
[402909299,1768981831791,-1001.62907248,0.00017621,2]
[402909300,1768981831801,-15720.26954031,0.000177,2]
[402909301,1768981831813,-12793.06620063,0.000177,2]
[402909302,1768981831833,-1491.53744342,0.000177,2]
[402909303,1768981831859,-1961.94354208,0.000177,2]
[402909304,1768981831871,-428.83006423,0.000177,2]
[402909305,1768981831882,-1748.22741199,0.000177,2]
[402909318,1768981837719,-37977.73729572,0.000177,2]
[402909319,1768981837729,-5747.8853914,0.00017789,2]
[402909320,1768981837739,-800.0,0.00017796,2]
[402909321,1768981837749,-189.94302147,0.000178,2]
[402909322,1768981837759,-8553.25440902,0.000178,2]
[402909323,1768981837769,-276.25528502,0.000178,2]
[402909324,1768981837779,-5747.88539139,0.00017801,2]
[402909325,1768981837789,-200.6,0.00017803,2]
[402909326,1768981837798,-8553.25440895,0.00017811,2]
[402909327,1768981837808,-5747.88539139,0.00017814,2]
[402909328,1768981837817,-168.0,0.0001782,2]
[402909329,1768981837827,-8553.25440895,0.00017822,2]
[402909330,1768981837838,-5747.88539139,0.00017826,2]
[402909331,1768981837847,-5224.98447911,0.0001783,2]
[402909332,1768981837857,-8553.25440895,0.00017833,2]
[402909333,1768981837867,-168.0,0.00017843,2]
[402909334,1768981837876,-8553.25440895,0.00017844,2]
[402909335,1768981837890,-8553.25440895,0.00017856,2]
[402909336,1768981837899,-8553.25440895,0.00017867,2]
[402909337,1768981837909,-486.0,0.00017873,2]
[402909338,1768981837919,-8553.25440895,0.00017878,2]
[402909340,1768981837928,-151.0,0.00017884,2]
[402909342,1768981837938,-257.0,0.00017889,2]
[402909344,1768981837947,-8553.25440895,0.00017889,2]
[402909346,1768981837956,-318.49949957,0.00017899,2]
[402909348,1768981837966,-175.42995882,0.00017899,2]
[402909350,1768981837975,-614.43346293,0.00017899,2]
[402909352,1768981837985,-500.0,0.00017899,2]
[402909354,1768981837994,-499.99999983,0.00017899,2]